fUSD/lending_fUSD_20250521
["ID","MTS","AMOUNT","RATE_DAILY","PERIOD"]
[361861893,1747849838008,-2069.21555764,0.00037051,2]
[361861894,1747849838019,-515.567,0.00037106,2]
[361861895,1747849838029,-190.276,0.00037106,2]
[361861896,1747849838039,-6834.0,0.00037106,2]
[361861897,1747849838049,-4047.0,0.00037106,2]
[361861898,1747849838059,-1150.0,0.00037106,2]
[361861899,1747849838070,-2069.21555764,0.00037201,2]
[361861900,1747849838080,-2417.10059,0.00037205,4]
[361861901,1747849838093,-204.27380427,0.00037216,36]
[361861902,1747849838104,-205.0,0.00037217,6]
[361861903,1747849838115,-1000.0,0.00037336,7]
[361861904,1747849838124,-858.65423364,0.0003734,2]
[361861905,1747849838135,-2069.21555764,0.00037352,2]
[361861906,1747849838146,-1312.8948,0.00037365,2]
[361861907,1747849838156,-500.0,0.000374,13]
[361861908,1747849838166,-634.04,0.00037463,2]
[361861909,1747849838176,-1262.33,0.00037466,5]
[361861910,1747849838186,-1000.0,0.000375,13]
[361861911,1747849838197,-158.658,0.000375,2]
[361861912,1747849838208,-2069.21555764,0.00037503,2]
[361861913,1747849838218,-163.59090331,0.00037539,2]
[361861914,1747849838235,-1269.10605449,0.00037553,2]
[361861915,1747849838246,-1500.0,0.000376,13]
[361861916,1747849838260,-1029.0,0.000376,7]
[361861917,1747849838277,-500.0,0.000376,5]
[361861918,1747849838287,-152.0,0.00037612,3]
[361861919,1747849838299,-1269.10605445,0.00037631,2]
[361861920,1747849838309,-145012.217197,0.00037637,3]
[361861921,1747849838320,-137528.92110435,0.00037647,2]
[361861933,1747849839926,-495.86,0.00037647,2]
[361861934,1747849839939,-802.98685541,0.00037647,2]
[361861971,1747849840939,-68097.69734024,0.00037647,2]
[361861972,1747849840949,-2069.21555764,0.00037653,2]
[361861973,1747849840959,-500.41242563,0.00037675,5]
[361861974,1747849840969,-501.07401138,0.00037675,5]
[361861975,1747849840979,-500.0,0.00037675,5]
[361861976,1747849840988,-500.0,0.00037675,5]
[361861977,1747849840998,-500.0,0.00037675,5]
[361861978,1747849841008,-35943.8255,0.0003768,2]
[361861979,1747849841018,-500.55910517,0.00037683,3]
[361861980,1747849841028,-204.27380427,0.00037689,37]
[361861981,1747849841038,-2000.0,0.000377,13]
[361861982,1747849841047,-1269.10605445,0.00037709,2]
[361861983,1747849841057,-1012.23816969,0.0003771,7]
[361861984,1747849841067,-858.65423364,0.00037778,2]
[361861985,1747849841077,-726.1841,0.0003778,2]
[361861986,1747849841088,-500.0,0.0003778,2]
[361861987,1747849841098,-360.54754566,0.0003778,2]
[361861988,1747849841108,-765.04083463,0.0003778,2]
[361861989,1747849841118,-18443.91882224,0.0003778,2]
[361861990,1747849841128,-172.9343367,0.0003778,2]
[361861991,1747849841138,-1269.10605445,0.00037787,2]
[361861992,1747849841148,-157.27,0.000378,31]
[361861993,1747849841158,-157.27,0.000378,31]
[361861994,1747849841168,-2500.0,0.000378,13]
[361861995,1747849841178,-2069.21555764,0.00037804,2]
[361861996,1747849841188,-722.73,0.00037808,2]
[361861997,1747849841198,-453.23,0.00037808,2]
[361861998,1747849841209,-677.79,0.00037808,2]
[361861999,1747849841220,-353.35,0.00037808,2]
[361862000,1747849841231,-163.59090331,0.00037814,2]
[361862001,1747849841241,-1850.53445255,0.0003785,120]
[361862002,1747849841251,-1989.29623759,0.00037853,3]
[361862003,1747849841262,-1989.29623759,0.00037854,3]
[361862004,1747849841271,-5967.88871277,0.0003786,3]
[361862005,1747849841281,-1989.29623759,0.00037863,3]
[361862006,1747849841291,-32535.0,0.00037863,120]
[361862007,1747849841302,-33818.036039,0.00037864,3]
[361862008,1747849841312,-1269.10605445,0.00037865,2]
[361862009,1747849841322,-19892.9623759,0.0003787,3]
[361862010,1747849841332,-253.44236101,0.0003787,2]
[361862011,1747849841344,-153.5,0.0003787,2]
[361862012,1747849841354,-153.5,0.0003787,2]
[361862013,1747849841364,-153.5,0.0003787,2]
[361862014,1747849841375,-153.5,0.0003787,2]
[361862015,1747849841385,-153.5,0.0003787,2]
[361862016,1747849841395,-153.5,0.0003787,2]
[361862017,1747849841405,-153.5,0.0003787,2]
[361862018,1747849841414,-153.5,0.0003787,2]
[361862019,1747849841424,-153.5,0.0003787,2]
[361862020,1747849841434,-153.5,0.0003787,2]
[361862021,1747849841443,-500.6007246,0.00037873,5]
[361862022,1747849841453,-500.0,0.00037873,5]
[361862023,1747849841462,-500.0,0.00037873,5]
[361862024,1747849841472,-500.0,0.00037873,5]
[361862025,1747849841481,-500.26014629,0.00037873,5]
[361862026,1747849841491,-500.0,0.00037873,5]
[361862027,1747849841500,-368.43130571,0.00037873,5]
[361862028,1747849841510,-248.5400132,0.00037874,2]
[361862029,1747849841520,-4838.9936006,0.00037874,2]
[361862030,1747849841529,-19653.1634052,0.00037874,2]
[361862031,1747849841538,-3693.4589691,0.00037874,2]
[361862032,1747849841547,-15125.14759169,0.00037874,2]
[361862033,1747849841568,-144435.98109986,0.00037874,2]
[361862034,1747849841601,-193.39975728,0.0003778,7]
[361862035,1747849841610,-3102.30018424,0.00037874,2]
[361862036,1747849841622,-21358.53999999,0.00037874,2]
[361862037,1747849841638,-490.90501009,0.00037874,2]
[361862038,1747849841649,-917.66534124,0.00037874,2]
[361862039,1747849841662,-6489.30672719,0.00037874,2]
[361862040,1747849841672,-332.0,0.00037879,10]
[361862041,1747849841682,-200.0,0.00037879,30]
[361862042,1747849841691,-207.4,0.00037879,30]
[361862043,1747849841701,-215.0738,0.00037879,30]
[361862044,1747849841711,-200.6836438,0.00037879,30]
[361862045,1747849841720,-46135.52736505,0.0003788,30]
[361862046,1747849841732,-19918.29840004,0.0003788,30]
[361862047,1747849841743,-59119.99298469,0.0003788,30]
[361862059,1747849843038,-38.93717473,0.000368,2]
[361862060,1747849843129,-278.88632527,0.000368,2]
[361862061,1747849843398,-10471.11367473,0.0003788,30]
[361862064,1747849843435,-832.81998105,0.0003788,30]
[361862071,1747849845802,-2322.775409,0.0003788,30]
[361862072,1747849845815,-8521.917,0.0003788,30]
[361862073,1747849845827,-2664.0,0.0003788,30]
[361862074,1747849845859,-21066.048,0.0003788,30]
[361862075,1747849845969,-24835.2,0.0003788,30]
[361862076,1747849845981,-3823.4736088,0.0003788,30]
[361862077,1747849846302,-17868.8352,0.0003788,30]
[361862087,1747850092565,2039.85,0.00025,60]
[361862088,1747850405031,200.0,0.00029,117]
[361862089,1747850643576,200.0,0.00029,117]
[361862389,1747850958096,-156.13,0.00013699,2]
[361862390,1747850958120,-200.0,0.00021349,2]
[361862391,1747850958141,-200.0,0.0002451,2]
[361862392,1747850958164,-537.8729399,0.00029,14]
[361862393,1747850958186,-191.58186631,0.00029,2]
[361862394,1747850958209,-200.0,0.000295,117]
[361862395,1747850958234,-165.0,0.0003,5]
[361862396,1747850958256,-200.0,0.000319,117]
[361862397,1747850958278,-173.0,0.00033,14]
[361862398,1747850958300,-304.18,0.00033522,2]
[361862399,1747850958323,-302.86,0.00033645,2]
[361862409,1747851032382,-427.92,0.00035,120]
[361862515,1747851035026,169.27,0.00028713,2]
[361862532,1747851038011,-1167.44789626,0.00035,120]
[361862533,1747851038110,-10674.63210374,0.00035,120]
[361862534,1747851038120,-303.38,0.00035228,2]
[361862535,1747851038130,-200.0,0.00035252,117]
[361862536,1747851038139,-668.5,0.00035275,2]
[361862537,1747851038150,-200.0,0.0003537,117]
[361862538,1747851038160,-300.47,0.00035403,2]
[361862539,1747851038170,-302.03,0.00035431,2]
[361862540,1747851038181,-1274.94,0.00035511,5]
[361862541,1747851038190,-1250.19,0.00035511,5]
[361862542,1747851038200,-1237.93,0.00035545,5]
[361862543,1747851038210,-1247.1,0.00035545,5]
[361862544,1747851038220,-150.0,0.00035667,7]
[361862546,1747851038229,-200.0,0.00035678,3]
[361862548,1747851038239,-1329.18,0.0003571,2]
[361862549,1747851038249,-300.35,0.00035735,2]
[361862550,1747851038259,-301.34,0.00035735,2]
[361862551,1747851038269,-211.73,0.00035795,2]
[361862552,1747851038279,-202.13060383,0.000359,33]
[361862553,1747851038289,-178.48,0.00036087,120]
[361862554,1747851038298,-300.13,0.00036239,2]
[361862555,1747851038310,-228.85,0.00036269,2]
[361862556,1747851038319,-206.0,0.00036288,2]
[361862557,1747851038329,-202.13060372,0.00036329,34]
[361862558,1747851038339,-8795.78,0.00036607,2]
[361862559,1747851038349,-1000.0,0.0003666,2]
[361862560,1747851038358,-1933.680472,0.00036737,4]
[361862561,1747851038368,-250.0,0.00036737,2]
[361862562,1747851038378,-202.13060372,0.00036757,35]
[361862563,1747851038389,-1763.262,0.000368,46]
[361862564,1747851038399,-23900.0,0.00036887,2]
[361862565,1747851038409,-30222.5524,0.000369,2]
[361862566,1747851038419,-301.8,0.00037009,2]
[361862567,1747851038429,-170.1,0.00037078,2]
[361862568,1747851038439,-3100.902,0.00037156,2]
[361862569,1747851038449,-202.13060372,0.00037186,36]
[361862570,1747851038459,-1301.75,0.000373,2]
[361862571,1747851038468,-1242.64,0.00037374,5]
[361862572,1747851038478,-1000.0,0.00037446,2]
[361862573,1747851038489,-1000.0,0.00037446,2]
[361862574,1747851038499,-1821.6458,0.00037446,2]
[361862575,1747851038509,-163.59090331,0.00037471,2]
[361862576,1747851038519,-951.37225653,0.00037471,2]
[361862577,1747851038528,-1258.89,0.00037499,5]
[361862578,1747851038539,-1228.38,0.00037499,5]
[361862579,1747851038548,-1000.0,0.000375,30]
[361862580,1747851038560,-1000.0,0.000375,30]
[361862581,1747851038570,-1362.0,0.000375,7]
[361862582,1747851038580,-252.90102083,0.00037545,30]
[361862583,1747851038590,-500.0,0.00037545,2]
[361862584,1747851038602,-150.0,0.00037545,10]
[361862585,1747851038612,-150.0,0.00037545,30]
[361862586,1747851038622,-500.0,0.00037545,30]
[361862587,1747851038632,-150.0,0.00037545,30]
[361862588,1747851038642,-150.0,0.00037545,8]
[361862589,1747851038652,-153.12870604,0.00037545,30]
[361862590,1747851038662,-150.0,0.00037545,30]
[361862591,1747851038672,-150.0,0.00037545,30]
[361862592,1747851038684,-150.0,0.00037545,30]
[361862593,1747851038694,-150.0,0.00037545,30]
[361862594,1747851038705,-150.0,0.00037545,7]
[361862595,1747851038715,-510.88618402,0.00037545,2]
[361862596,1747851038725,-231.70799987,0.00037545,15]
[361862597,1747851038736,-500.0,0.00037545,7]
[361862598,1747851038745,-500.0,0.00037545,15]
[361862599,1747851038756,-500.0,0.00037545,15]
[361862600,1747851038766,-500.0,0.00037545,7]
[361862601,1747851038776,-500.0,0.00037545,15]
[361862602,1747851038786,-500.0,0.00037545,7]
[361862603,1747851038796,-500.0,0.00037545,7]
[361862604,1747851038807,-500.0,0.00037545,15]
[361862605,1747851038822,-500.0,0.00037545,7]
[361862606,1747851038831,-500.0,0.00037545,15]
[361862607,1747851038841,-500.0,0.00037545,7]
[361862608,1747851038851,-500.0,0.00037545,15]
[361862609,1747851038863,-500.0,0.00037545,15]
[361862610,1747851038872,-500.0,0.00037545,7]
[361862611,1747851038882,-500.0,0.00037545,7]
[361862612,1747851038891,-500.0,0.00037545,15]
[361862613,1747851038902,-173.44804346,0.00037545,15]
[361862614,1747851038911,-500.0,0.00037545,7]
[361862615,1747851038921,-500.0,0.00037545,7]
[361862616,1747851038931,-500.0,0.00037545,7]
[361862617,1747851038940,-500.0,0.00037545,15]
[361862618,1747851038950,-500.0,0.00037545,7]
[361862619,1747851038960,-500.0,0.00037545,15]
[361862620,1747851038970,-500.0,0.00037545,7]
[361862621,1747851038980,-500.0,0.00037545,7]
[361862622,1747851038990,-500.0,0.00037545,15]
[361862623,1747851039000,-500.0,0.00037545,7]
[361862624,1747851039009,-500.0,0.00037545,7]
[361862625,1747851039019,-500.0,0.00037545,7]
[361862626,1747851039029,-500.0,0.00037545,7]
[361862627,1747851039039,-500.0,0.00037545,7]
[361862628,1747851039049,-500.0,0.00037545,7]
[361862629,1747851039062,-500.0,0.00037545,7]
[361862630,1747851039072,-500.0,0.00037545,7]
[361862631,1747851039082,-500.0,0.00037545,7]
[361862632,1747851039091,-500.0,0.00037545,7]
[361862633,1747851039102,-500.0,0.00037545,7]
[361862634,1747851039112,-500.0,0.00037545,7]
[361862635,1747851039122,-500.0,0.00037545,7]
[361862636,1747851039132,-500.0,0.00037545,7]
[361862637,1747851039142,-500.0,0.00037545,7]
[361862638,1747851039151,-500.0,0.00037545,7]
[361862639,1747851039161,-469.7186852,0.00037545,7]
[361862640,1747851039171,-500.0,0.00037545,7]
[361862641,1747851039181,-500.0,0.00037545,7]
[361862642,1747851039191,-500.0,0.00037545,7]
[361862643,1747851039201,-500.0,0.00037545,7]
[361862644,1747851039211,-500.0,0.00037545,7]
[361862645,1747851039221,-500.0,0.00037545,7]
[361862646,1747851039231,-78936.10900995,0.00037546,2]
[361862647,1747851039296,-3634.699875,0.00037546,2]
[361862648,1747851039370,-982.89999999,0.00037546,2]
[361862649,1747851039383,-504.13971015,0.00037546,2]
[361862650,1747851039395,-6398.7,0.00037546,2]
[361862651,1747851039407,-3322.27869263,0.00037546,2]
[361862655,1747851040252,-372.1643057,0.00037546,2]
[361862656,1747851040268,-4685.44080493,0.00037546,2]
[361862657,1747851040280,-18342.2298048,0.00037546,2]
[361862658,1747851040292,-902.79102923,0.00037546,2]
[361862659,1747851040303,-398.47615445,0.00037546,2]
[361862660,1747851040347,-8274.33026695,0.00037546,2]
[361862661,1747851040362,-6720.45362657,0.00037546,2]
[361862662,1747851040583,-1077.73529373,0.00037546,2]
[361862663,1747851040603,-361.53686453,0.00037546,2]
[361862670,1747851043028,-301.11,0.00036,2]
[361862672,1747851043038,-2500.0,0.00037446,2]
[361862674,1747851043047,-17389.66597173,0.00037546,2]
[361862677,1747851043083,-4463.63168715,0.00037546,2]
[361862678,1747851043095,-21052.25498684,0.00037546,2]
[361862679,1747851043398,-19695.744,0.00037546,2]
[361862687,1747851046354,-4744.05351506,0.00037546,2]
[361862688,1747851046367,-4666.12970061,0.00037546,2]
[361862689,1747851046378,-951.37225646,0.00037558,2]
[361862690,1747851046388,-200.0,0.00037571,10]
[361862691,1747851046397,-500.0,0.00037572,2]
[361862692,1747851046407,-150.0,0.00037572,10]
[361862694,1747851046418,-150.0,0.00037572,30]
[361862695,1747851046430,-500.0,0.00037572,30]
[361862696,1747851046440,-150.0,0.00037572,8]
[361862697,1747851046450,-200.0,0.00037572,30]
[361862698,1747851046459,-150.0,0.00037572,30]
[361862699,1747851046469,-206.34336639,0.00037572,30]
[361862700,1747851046479,-150.0,0.00037572,30]
[361862701,1747851046489,-501.21234881,0.000376,2]
[361862702,1747851046498,-210.49620905,0.000376,10]
[361862703,1747851046508,-150.0,0.000376,30]
[361862704,1747851046518,-500.0,0.000376,30]
[361862705,1747851046528,-150.0,0.000376,8]
[361862706,1747851046537,-150.0,0.000376,30]
[361862707,1747851046547,-202.13060372,0.00037614,37]
[361862708,1747851046557,-500.0,0.00037627,30]
[361862709,1747851046566,-297.0677831,0.00037627,8]
[361862711,1747851046576,-37.24773186,0.00037627,30]
[361862718,1747852003135,-300.0,0.00011999,2]
[361862719,1747852003163,-500.0,0.00011999,2]
[361862720,1747852003191,-500.0,0.00011999,2]
[361862721,1747852003218,-17.75826335,0.00011999,2]
[361862819,1747852125776,597.0677821,0.00027,120]
[361862820,1747852130800,-165.48514611,0.00011899,2]
[361862823,1747852153279,-163.59090331,0.000119,2]
[361862824,1747852153304,-44.20867989,0.00011973,2]
[361862825,1747852157658,-217.2626987,0.00011973,2]
[361862827,1747852160920,-238.52862141,0.00011973,2]
[361862828,1747852160943,-74.76855518,0.00011973,2]
[361862829,1747852162462,-272.86357278,0.00011973,2]
[361862833,1747852165439,-76.57748333,0.00011973,2]
[361862834,1747852206433,-201.37894389,0.00011973,2]
[361862835,1747852211093,-160.60790816,0.00011973,2]
[361862836,1747852212746,-139.49304109,0.00011973,2]
[361862883,1747852232868,-1200.0,0.0001199,2]
[361862885,1747852232878,-150.0,0.0001199,2]
[361862887,1747852232889,-300.0,0.0001199,2]
[361862889,1747852232899,-76112.4141741,0.00011991,2]
[361862891,1747852232909,-482.24173665,0.00011999,2]
[361862893,1747852232919,-531.94637806,0.00011999,2]
[361862895,1747852232929,-500.0,0.00011999,2]
[361862897,1747852232939,-330.80209134,0.00011999,2]
[361862899,1747852232949,-494.35067564,0.00011999,2]
[361862902,1747852232960,-32408.50670896,0.00012,2]
[361862969,1747852238372,-556.12142121,0.00012,2]
[361862980,1747852240264,-2137.60378122,0.00012,2]
[361862981,1747852240278,-8174.19807517,0.00012,2]
[361862982,1747852240485,-771177.743259,0.00012,2]
[361862983,1747852240495,-59977.65007051,0.00012,2]
[361862984,1747852240504,-7311.36297725,0.00012,2]
[361862985,1747852240514,-1000.0,0.00012521,2]
[361862986,1747852240524,-890.49863081,0.00012972,2]
[361862987,1747852240534,-256.9069621,0.00013068,2]
[361862988,1747852240544,-255.0,0.00013069,2]
[361862989,1747852240553,-667.66686139,0.00013072,2]
[361862990,1747852240563,-276.52181464,0.00013072,2]
[361862991,1747852240574,-420.0,0.00013162,2]
[361862992,1747852240584,-1680.0,0.00013189,2]
[361862993,1747852240595,-4929.46994721,0.00013368,2]
[361862994,1747852240605,-157.45,0.00013699,2]
[361862995,1747852240614,-500.0,0.00013699,2]
[361862996,1747852240624,-500.0,0.00013699,2]
[361862997,1747852240634,-500.0,0.00013699,2]
[361862998,1747852240644,-500.0,0.00013699,2]
[361862999,1747852240659,-500.0,0.00013699,2]
[361863000,1747852240670,-500.0,0.00013699,2]
[361863001,1747852240680,-500.0,0.00013699,2]
[361863002,1747852240690,-500.0,0.00013699,2]
[361863003,1747852240699,-500.0,0.00013699,2]
[361863004,1747852240709,-500.0,0.00013699,2]
[361863005,1747852240719,-500.0,0.00013699,2]
[361863006,1747852240729,-500.0,0.00013699,2]
[361863007,1747852240739,-381.15879176,0.00013699,2]
[361863008,1747852240749,-500.0,0.00013699,2]
[361863009,1747852240759,-229.47481879,0.00013699,2]
[361863010,1747852240768,-500.0,0.00013699,2]
[361863011,1747852240778,-500.0,0.00013699,2]
[361863012,1747852240788,-500.0,0.00013699,2]
[361863013,1747852240798,-500.0,0.00013699,2]
[361863014,1747852240808,-207.34257022,0.00013699,2]
[361863015,1747852240818,-433.0,0.00014244,2]
[361863016,1747852240828,-1230.0,0.0001439,2]
[361863017,1747852240838,-587.0,0.0001445,2]
[361863018,1747852240848,-2351.0,0.00014508,2]
[361863019,1747852240858,-500.0,0.00014644,2]
[361863020,1747852240868,-500.0,0.00014644,2]
[361863021,1747852240878,-250.0,0.00015,2]
[361863022,1747852240888,-1982.71656709,0.00015,2]
[361863023,1747852240898,-7718.13121011,0.00015,2]
[361863024,1747852240908,-18353.71950803,0.00015,2]
[361863025,1747852240917,-56916.42341855,0.00015,2]
[361863026,1747852240927,-1000.0,0.00015192,2]
[361863027,1747852240937,-308.21144317,0.00015192,2]
[361863028,1747852240948,-1517.64,0.000153,2]
[361863029,1747852240957,-173.83,0.00015396,2]
[361863030,1747852240967,-16162.32436297,0.000154,2]
[361863031,1747852240977,-491.43744732,0.000154,2]
[361863032,1747852240987,-173.83,0.00015473,2]
[361863033,1747852240999,-736.0,0.00015527,2]
[361863034,1747852241009,-890.49863081,0.00015695,2]
[361863035,1747852241019,-1074.84462104,0.0001574,2]
[361863036,1747852241028,-667.66686138,0.00015784,2]
[361863037,1747852241039,-3292.0,0.00015959,2]
[361863038,1747852241048,-276.52181458,0.00015968,2]
[361863039,1747852241058,-1252.0,0.0001693,2]
[361863040,1747852241068,-300.0,0.00017,2]
[361863041,1747852241080,-4609.0,0.00017555,2]
[361863042,1747852241091,-932.74514831,0.0001799,2]
[361863043,1747852241101,-890.49863081,0.00018418,2]
[361863044,1747852241110,-2129.0,0.00018453,2]
[361863045,1747852241120,-667.66686138,0.00018496,2]
[361863046,1747852241130,-293.92817804,0.00018763,2]
[361863047,1747852241140,-151.14,0.0001877,2]
[361863048,1747852241150,-538875.38798957,0.0001878,2]
[361863049,1747852241160,-276.52181458,0.00018863,2]
[361863050,1747852241170,-153.43653516,0.000189,2]
[361863051,1747852241180,-350.0,0.00019,2]
[361863052,1747852241189,-1400.0,0.00019,2]
[361863053,1747852241199,-4008.39086527,0.00019,2]
[361863054,1747852241208,-6453.0,0.0001931,2]
[361863055,1747852241218,-3331.73960918,0.0001961,2]
[361863056,1747852241227,-8231.11542861,0.0001968,2]
[361863057,1747852241238,-6438.83,0.000197,2]
[361863058,1747852241247,-3041.65147214,0.0001987,2]
[361863059,1747852241256,-10977.65703369,0.00019889,2]
[361863060,1747852241266,-151.14,0.0001989,2]
[361863061,1747852241275,-151.14,0.0001989,2]
[361863062,1747852241284,-243363.032554,0.000199,2]
[361863063,1747852241294,-641.77905236,0.000199,2]
[361863064,1747852241303,-641.7790521,0.000199,2]
[361863065,1747852241313,-641.7790521,0.000199,2]
[361863066,1747852241322,-641.7790521,0.000199,2]
[361863067,1747852241331,-641.7790521,0.000199,2]
[361863068,1747852241340,-641.7790521,0.000199,2]
[361863069,1747852241349,-641.7790521,0.000199,2]
[361863070,1747852241359,-641.7790521,0.000199,2]
[361863071,1747852241368,-514.0,0.0001997,2]
[361863072,1747852241378,-502.28145813,0.00019973,2]
[361863073,1747852241388,-501.54142638,0.00019973,2]
[361863074,1747852241397,-162.38208984,0.00019973,2]
[361863075,1747852241406,-500.0,0.00019973,2]
[361863076,1747852241416,-501.24673176,0.00019973,2]
[361863077,1747852241425,-152.96744924,0.00019973,2]
[361863078,1747852241435,-500.0,0.00019973,2]
[361863079,1747852241445,-500.0,0.00019973,2]
[361863080,1747852241457,-500.5449482,0.00019973,2]
[361863081,1747852241466,-505.29363203,0.00019973,2]
[361863082,1747852241476,-40978.89172089,0.00019985,2]
[361863083,1747852241486,-30258.2376432,0.0001999,2]
[361863084,1747852241496,-30651.5713426,0.0001999,2]
[361863085,1747852241506,-151.14,0.0001999,2]
[361863086,1747852241516,-151.14,0.0001999,2]
[361863087,1747852241528,-151.14,0.0001999,2]
[361863088,1747852241538,-2004.87500045,0.00019999,2]
[361863089,1747852241548,-92138.54539154,0.0002,2]
[361863090,1747852241559,-101087.75284186,0.0002,2]
[361863091,1747852241569,-301.80812591,0.0002,2]
[361863092,1747852241579,-10000.0,0.0002,2]
[361863093,1747852241589,-1485.42238117,0.0002,2]
[361863094,1747852241599,-4312.74677894,0.0002,2]
[361863095,1747852241609,-482.11134015,0.0002,2]
[361863096,1747852241619,-3950.0,0.0002,2]
[361863097,1747852241630,-1254.31439039,0.0002,2]
[361863098,1747852241640,-11867.79654511,0.0002,2]
[361863099,1747852241651,-1012.07611818,0.0002,2]
[361863100,1747852241662,-2772.85403256,0.0002,2]
[361863101,1747852241672,-89152.63300466,0.0002,2]
[361863102,1747852241682,-1000.0,0.0002,2]
[361863103,1747852241692,-4000.0,0.0002,4]
[361863104,1747852241702,-9007.16143387,0.0002001,2]
[361863105,1747852241712,-4966.86406309,0.0002001,2]
[361863106,1747852241722,-5772.0,0.0002001,2]
[361863107,1747852241732,-321.0,0.00020107,2]
[361863108,1747852241742,-1676.16003801,0.0002015,2]
[361863109,1747852241753,-1004.68355529,0.00020521,2]
[361863110,1747852241764,-1000.0,0.00020521,2]
[361863111,1747852241774,-319.44516173,0.00020521,2]
[361863112,1747852241783,-641.7790521,0.00020624,3]
[361863113,1747852241794,-21957.06692252,0.000207,2]
[361863114,1747852241803,-521.94,0.00020876,2]
[361863115,1747852241814,-200.0,0.00021,2]
[361863116,1747852241825,-400.0,0.00021,2]
[361863117,1747852241836,-20000.0,0.00021,2]
[361863118,1747852241847,-1156.23396266,0.00021,2]
[361863119,1747852241856,-190.83067945,0.00021,2]
[361863120,1747852241867,-1500.0,0.00021068,2]
[361863121,1747852241877,-890.49863081,0.00021141,2]
[361863122,1747852241887,-667.66686138,0.00021208,2]
[361863123,1747852241896,-9035.0,0.00021241,2]
[361863124,1747852241906,-164.72,0.00021366,2]
[361863125,1747852241915,-3225.59979928,0.00021524,2]
[361863126,1747852241924,-641.7790521,0.0002159,5]
[361863127,1747852241936,-6438.83,0.000216,2]
[361863128,1747852241946,-675.79235786,0.00021616,2]
[361863129,1747852241957,-7323.93979496,0.000217,2]
[361863130,1747852241966,-276.52181458,0.00021759,2]
[361863131,1747852241976,-5434.0,0.000218,2]
[361863132,1747852241986,-514.56563667,0.00021918,2]
[361863133,1747852241996,-248.07958158,0.00022,2]
[361863134,1747852242007,-500.0,0.00022,2]
[361863135,1747852242017,-232.48798852,0.0002211,2]
[361863136,1747852242027,-151.14,0.0002249,2]
[361863137,1747852242039,-34326.41200879,0.000225,2]
[361863138,1747852242049,-641.7790521,0.00022555,7]
[361863139,1747852242059,-506.16025854,0.0002271,2]
[361863140,1747852242070,-450.0,0.00023,2]
[361863141,1747852242080,-2999.98,0.00023,2]
[361863142,1747852242090,-3000.0,0.00023,2]
[361863143,1747852242100,-3000.0,0.00023,2]
[361863144,1747852242111,-3000.0,0.00023,2]
[361863145,1747852242121,-3000.0,0.00023,2]
[361863146,1747852242131,-1732.37,0.00023,2]
[361863147,1747852242141,-1505.54666576,0.00023,2]
[361863148,1747852242151,-200.0,0.000231,2]
[361863149,1747852242161,-50485.42722867,0.000232,2]
[361863150,1747852242170,-11145.0,0.00023365,2]
[361863151,1747852242180,-200.0,0.000235,2]
[361863152,1747852242189,-641.7790521,0.00023521,9]
[361863153,1747852242199,-272.01,0.00023836,2]
[361863154,1747852242209,-890.49863081,0.00023864,2]
[361863155,1747852242219,-667.66686138,0.0002392,2]
[361863156,1747852242229,-151.14,0.0002399,2]
[361863157,1747852242239,-59775.64901155,0.00024,2]
[361863158,1747852242249,-987.22865527,0.00024,2]
[361863159,1747852242258,-5000.00128354,0.00024,5]
[361863160,1747852242268,-81480.11854981,0.00024,2]
[361863161,1747852242277,-256.945363,0.00024,7]